[Event "Cellavision Cup 2018"]
[Site "Lund"]
[Date "2018.08.05"]
[Round "7"]
[White "Hansen, Torbjorn Ringdal"]
[Black "Dragicevic, Drazen"]
[Result "1/2-1/2"]
[ECO "B34"]
[WhiteElo "2422"]
[BlackElo "2339"]
[Annotator "NA"]
[PlyCount "221"]
[EventDate "2018.08.03"]
[EventType "swiss"]
[EventCountry "SWE"]
[SourceTitle "playchess.com"]
[Source "ChessBase"]
[SourceQuality "1"]
[TimeControl "5400+30"]

1. e4 {[%emt 0:00:00]} c5 {[%emt 0:06:22]} 2. Nf3 {[%emt 0:00:00]} Nc6 {[%emt 0:00:19]} 3. d4 {[%emt 0:00:00]} cxd4 {[%emt 0:00:26]} 4. Nxd4 {[%emt 0:00:13]} Nf6 {[%emt 0:01:12]} 5. Nc3 {[%emt 0:00:08]} e5 {[%emt 0:00:17]} 6. Ndb5 {[%emt 0:00:06]} d6 {[%emt 0:00:08]} 7. Nd5 {[%emt 0:00:07]} Nxd5 {[%emt 0:00:15]} 8. exd5 {[%emt 0:00:05]} Nb8 {[%emt 0:01:29]} 9. c4 {[%emt 0:00:07]} a6 {[%emt 0:04:30]} 10. Nc3 {[%emt 0:00:39]} Be7 {[%emt 0:00:16]} 11. Be2 {[%emt 0:00:16] B33: Sicilian: Pelikan and Sveshnikov Variations} O-O {[%emt 0:08:57]} 12. O-O {[%emt 0:00:11]} g5 {[%emt 0:01:19]} (12... f5 13. Rb1 Nd7 14. b4 Bg5 15. Bxg5 Qxg5 16. c5 dxc5 17. d6 cxb4 18. Nd5 Rb8 19. f4 Qh6 20. Ne7+ Kh8 21. Rb3 exf4 {0-1 (38) Shyam,N (2401)-Mozharov,M (2558) Bhubaneswar 2018}) 13. a4 $146 {[%emt 0:01:48]} ({Predecessor:} 13. Kh1 f5 14. g3 Kh8 15. f4 Nd7 16. Qc2 gxf4 17. gxf4 Rg8 18. Qxf5 Nf6 19. Qd3 b5 20. cxb5 axb5 21. b4 Qf8 22. Bf3 Bh3 23. Rf2 Qg7 24. Bb2 {1-0 (24) Castano,D (2234)-Hernandez Fierro,R (2215) Cali 2002}) 13... a5 {[%emt 0:03:44]} 14. c5 {[%emt 0:00:09]} dxc5 {[%emt 0:13:23]} 15. Nb5 {[%emt 0:06:19]} Ra6 {[%emt 0:09:53]} 16. Ra3 {[%emt 0:00:15]} Rg6 {[%emt 0:10:59]} 17. Re1 {[%emt 0:12:36]} Bd6 {[%emt 0:01:21]} 18. Rg3 {[%emt 0:00:50]} h6 {[%emt 0:02:52] [#]} 19. Bh5 {[%emt 0:04:16]} ({White should play} 19. Re3 $1 $16) 19... Rg7 $1 {[%emt 0:00:34]} 20. Bd2 {[%emt 0:04:49]} b6 {[%emt 0:00:21]} 21. Bc3 {[%emt 0:00:11]} f6 {[%emt 0:00:20]} 22. Bg4 {[%emt 0:00:20]} Bxg4 {[%emt 0:03:52]} 23. Qxg4 {[%emt 0:00:56]} Qd7 {[%emt 0:04:49]} 24. Qe2 {[%emt 0:02:55]} Be7 {[%emt 0:02:22]} 25. Qc4 {[%emt 0:02:48]} Bd8 {[%emt 0:00:21]} 26. h4 {[%emt 0:03:34]} Rff7 {[%emt 0:06:11]} 27. h5 {[%emt 0:08:20]} Na6 {[%emt 0:01:01]} 28. d6 {[%emt 0:01:33]} Nb8 {[%emt 0:00:28]} 29. Rge3 {[%emt 0:05:00]} Nc6 {[%emt 0:03:48]} 30. Qd5 {[%emt 0:00:55]} Qb7 {[%emt 0:05:05]} 31. Qc4 {[%emt 0:03:46]} Qd7 {[%emt 0:00:05]} 32. Kf1 {[%emt 0:00:35]} Kh8 {[%emt 0:00:31]} 33. b3 {[%emt 0:03:54]} Rf8 {[%emt 0:00:35]} 34. f3 {[%emt 0:02:56]} Qf7 {[%emt 0:02:30]} 35. Qe4 {[%emt 0:00:33]} Nb8 {[%emt 0:00:44]} 36. g4 {[%emt 0:01:35]} Nd7 {[%emt 0:00:20]} 37. Kg2 {[%emt 0:04:24]} Kg8 {[%emt 0:00:30]} 38. Bb2 {[%emt 0:01:13]} Kh8 {[%emt 0:01:25]} 39. Na3 {[%emt 0:01:12]} Kg8 {[%emt 0:00:41]} 40. Nc4 {[%emt 0:00:12]} Re8 {[%emt 0:02:06]} 41. Qc6 {[%emt 0:05:18]} Rf8 {[%emt 0:00:29]} 42. Rd3 {[%emt 0:00:44]} Kh8 {[%emt 0:01:40]} 43. Ne3 {[%emt 0:00:31]} Nb8 {[%emt 0:00:44]} 44. Qe4 {[%emt 0:00:24]} Qb7 {[%emt 0:00:35]} 45. Qc4 {[%emt 0:04:14]} Qf7 {[%emt 0:00:35]} 46. Qc1 {[%emt 0:05:15]} Nd7 {[%emt 0:00:57]} 47. Nf5 {[%emt 0:00:07]} Rh7 {[%emt 0:00:04]} 48. Qc2 {[%emt 0:00:55]} Qe6 {[%emt 0:00:30]} 49. Re4 {[%emt 0:01:01]} Rff7 {[%emt 0:00:33]} 50. Qe2 {[%emt 0:01:09]} Nf8 {[%emt 0:01:02]} 51. Rde3 {[%emt 0:00:52]} Qd7 {[%emt 0:00:17]} 52. Kg3 {[%emt 0:01:16]} Kg8 {[%emt 0:00:09]} 53. Qc4 {[%emt 0:01:42]} Qe6 {[%emt 0:00:38]} 54. Qd3 {[%emt 0:01:11]} Qd7 {[%emt 0:00:04]} 55. Qd5 {[%emt 0:00:37]} Qe6 {[%emt 0:01:23]} 56. Qa8 {[%emt 0:01:10]} Qd7 {[%emt 0:00:01]} 57. Qa6 {[%emt 0:01:14]} Ne6 {[%emt 0:01:12]} 58. Re1 {[%emt 0:01:26]} Nf4 {[%emt 0:00:41]} 59. Qa8 {[%emt 0:02:35]} Rf8 {[%emt 0:00:32]} 60. Rxf4 {[%emt 0:02:35]} gxf4+ {[%emt 0:00:22]} 61. Kg2 {[%emt 0:01:12]} Qb7 {[%emt 0:00:29]} 62. Nxh6+ {[%emt 0:00:43]} Kh8 {[%emt 0:00:01]} 63. Qxb7 {[%emt 0:01:00]} Rxb7 {[%emt 0:00:01]} 64. g5 {[%emt 0:00:51]} fxg5 {[%emt 0:00:54]} 65. Ng4 {[%emt 0:00:09]} Kh7 {[%emt 0:00:13]} 66. Bxe5 {[%emt 0:00:27]} Re8 {[%emt 0:01:17]} 67. Rc1 {[%emt 0:00:19]} Re6 {[%emt 0:00:11]} 68. Kf1 {[%emt 0:00:49]} Rf7 {[%emt 0:00:16]} 69. Rc4 {[%emt 0:00:38]} Kg8 {[%emt 0:00:45]} 70. Re4 {[%emt 0:00:37]} Rh7 {[%emt 0:00:16]} 71. h6 {[%emt 0:00:17]} Kf7 {[%emt 0:00:41]} 72. Ke2 {[%emt 0:00:29]} (72. Bg7 $17) 72... Rexh6 {[%emt 0:01:03]} 73. Nxh6+ {[%emt 0:01:09]} Rxh6 {[%emt 0:00:02]} 74. Kd3 {[%emt 0:02:17]} Rh3 {[%emt 0:00:22]} 75. Kc4 {[%emt 0:00:11]} Rxf3 {[%emt 0:00:08]} 76. Kd5 {[%emt 0:01:43]} Re3 {[%emt 0:01:44]} 77. Rc4 {[%emt 0:00:14]} Rd3+ {[%emt 0:00:33]} 78. Ke4 {[%emt 0:00:44]} Rxb3 {[%emt 0:00:08]} 79. Kf5 {[%emt 0:00:13]} Rh3 {[%emt 0:00:55]} 80. Rc2 {[%emt 0:00:30]} Rh1 {[%emt 0:00:31]} 81. Re2 {[%emt 0:00:32]} Rh6 {[%emt 0:00:21]} 82. d7 {[%emt 0:00:47]} f3 {[%emt 0:00:32]} 83. Rd2 {[%emt 0:00:51]} Rh4 {[%emt 0:00:37]} 84. Bg3 {[%emt 0:00:31]} Rd4 {[%emt 0:00:30]} 85. Rh2 $1 {[%emt 0:00:30]} Rd5+ {[%emt 0:00:32]} 86. Ke4 {[%emt 0:00:41]} Rd4+ $2 {[%emt 0:00:20]} (86... Rxd7 $19 87. Rh7+ Ke6 88. Rh6+ Bf6 89. Kxf3 Rd3+ 90. Kg4 Rd4+ 91. Kf3 Rxa4) 87. Kf5 $19 {[%emt 0:00:04]} Bf6 {[%emt 0:00:43]} 88. Rh7+ {[%emt 0:00:25]} Kg8 {[%emt 0:00:30]} 89. Rh6 {[%emt 0:00:11]} Rxd7 {[%emt 0:00:31]} 90. Rxf6 {[%emt 0:00:38]} Rf7 {[%emt 0:00:07]} 91. Rxf7 {[%emt 0:00:25]} Kxf7 {[%emt 0:00:01]} 92. Ke4 {[%emt 0:01:09]} Ke6 {[%emt 0:00:50]} 93. Kxf3 {[%emt 0:00:28]} Kd5 {[%emt 0:00:06]} 94. Bc7 {[%emt 0:00:08]} Kc4 {[%emt 0:01:11]} 95. Bxb6 {[%emt 0:00:16]} Kb4 {[%emt 0:00:04]} 96. Bd8 {[%emt 0:00:20]} Kxa4 {[%emt 0:00:35]} 97. Bxg5 {[%emt 0:00:20]} Kb3 {[%emt 0:00:14]} 98. Ke2 {[%emt 0:00:18]} Kc2 {[%emt 0:00:15]} 99. Be7 {[%emt 0:01:00]} c4 {[%emt 0:00:05]} 100. Bd6 {[%emt 0:01:07]} a4 {[%emt 0:00:10]} 101. Be7 {[%emt 0:00:15]} c3 {[%emt 0:01:01]} 102. Bd6 {[%emt 0:00:26]} Kb1 {[%emt 0:01:29]} 103. Ba3 {[%emt 0:00:19]} Kc2 {[%emt 0:00:39]} 104. Bd6 {[%emt 0:00:07]} Kb2 {[%emt 0:00:39]} 105. Kd3 {[%emt 0:00:30]} c2 {[%emt 0:00:17]} 106. Ba3+ {[%emt 0:00:16]} Kxa3 {[%emt 0:00:26]} 107. Kxc2 {[%emt 0:00:05]} Ka2 {[%emt 0:00:11]} 108. Kc1 {[%emt 0:00:04]} a3 {[%emt 0:00:05]} 109. Kc2 {[%emt 0:00:03]} Ka1 {[%emt 0:00:03]} 110. Kc1 {[%emt 0:00:03]} a2 {[%emt 0:00:03]} 111. Kc2 {[%emt 0:00:03]} 1/2-1/2

[Event "Cellavision Cup 2018"]
[Site "Lund"]
[Date "2018.08.05"]
[Round "7"]
[White "Hoi, Carsten"]
[Black "Bogo, Soren"]
[Result "1-0"]
[ECO "D52"]
[WhiteElo "2380"]
[BlackElo "2238"]
[Annotator "NA"]
[PlyCount "89"]
[EventDate "2018.08.03"]
[EventType "swiss"]
[EventCountry "SWE"]
[SourceTitle "playchess.com"]
[Source "ChessBase"]
[SourceQuality "1"]
[TimeControl "5400+30"]

1. d4 {[%emt 0:00:00]} d5 {[%emt 0:01:20]} 2. Nf3 {[%emt 0:00:00]} Nf6 {[%emt 0:00:33]} 3. c4 {[%emt 0:00:43]} e6 {[%emt 0:01:47]} 4. Bg5 {[%emt 0:02:30]} Nbd7 {[%emt 0:01:42]} 5. Nc3 {[%emt 0:03:34]} c6 {[%emt 0:00:19]} 6. e3 {[%emt 0:01:08]} Qa5 {[%emt 0:00:34]} 7. Nd2 {[%emt 0:01:40]} Bb4 {[%emt 0:00:32]} 8. Qc2 {[%emt 0:01:19]} O-O {[%emt 0:00:13]} 9. Be2 {[%emt 0:02:04]} e5 {[%emt 0:01:27]} 10. O-O {[%emt 0:12:52]} exd4 {[%emt 0:02:08]} 11. Nb3 {[%emt 0:02:12]} Qb6 {[%emt 0:02:32]} 12. exd4 {[%emt 0:02:54]} dxc4 {[%emt 0:08:02]} 13. Bxc4 {[%emt 0:02:30]} a5 {[%emt 0:04:46]} 14. a4 {[%emt 0:04:28]} Qd8 {[%emt 0:08:35]} 15. Rfe1 {[%emt 0:10:57]} Nb6 {[%emt 0:01:33]} 16. Bd3 {[%emt 0:01:04]} h6 {[%emt 0:01:13]} 17. Bh4 {[%emt 0:00:31]} Be6 {[%emt 0:05:46]} 18. Rad1 {[%emt 0:09:18]} Bxb3 {[%emt 0:06:54]} 19. Qxb3 {[%emt 0:00:22]} Nbd5 {[%emt 0:00:27]} 20. Bc4 {[%emt 0:09:47]} Qd7 {[%emt 0:05:29]} 21. Bxd5 {[%emt 0:05:31]} Nxd5 {[%emt 0:00:17]} 22. Nxd5 {[%emt 0:00:41]} Qxd5 {[%emt 0:01:22]} 23. Qxd5 {[%emt 0:00:55]} cxd5 {[%emt 0:00:06]} 24. Re5 {[%emt 0:00:20]} g5 {[%emt 0:01:10]} 25. Bg3 {[%emt 0:00:07]} Rad8 {[%emt 0:05:37]} 26. Kf1 {[%emt 0:03:07]} f6 {[%emt 0:02:17]} 27. Re6 {[%emt 0:00:11]} Kf7 {[%emt 0:01:13]} 28. Rb6 {[%emt 0:01:14]} Rd7 {[%emt 0:00:05]} 29. Ke2 {[%emt 0:02:49]} Re8+ {[%emt 0:05:35]} 30. Kd3 {[%emt 0:00:24]} Re1 {[%emt 0:08:28]} 31. Rxe1 {[%emt 0:01:43]} Bxe1 {[%emt 0:00:01]} 32. f3 {[%emt 0:00:52]} Bb4 {[%emt 0:00:09]} 33. h4 {[%emt 0:02:11]} Kg6 {[%emt 0:02:54]} 34. h5+ {[%emt 0:01:17]} Kf5 {[%emt 0:07:12]} 35. Bf2 {[%emt 0:02:23]} g4 {[%emt 0:03:36]} 36. Be3 {[%emt 0:02:40]} gxf3 {[%emt 0:00:34]} 37. gxf3 {[%emt 0:00:02]} Rg7 {[%emt 0:01:04]} 38. Bxh6 {[%emt 0:01:02]} Rh7 {[%emt 0:00:33]} 39. Bd2 {[%emt 0:00:48]} Bxd2 {[%emt 0:00:40]} 40. Kxd2 {[%emt 0:00:02]} Rxh5 {[%emt 0:00:11]} 41. Ke3 {[%emt 0:00:06]} Rh2 {[%emt 0:00:44]} 42. Rxb7 {[%emt 0:01:07]} Ke6 {[%emt 0:02:35]} 43. Rb6+ {[%emt 0:00:34]} Ke7 {[%emt 0:00:01]} 44. Rb5 {[%emt 0:02:47]} Ke6 {[%emt 0:00:09]} 45. b3 {[%emt 0:00:15]} 1-0

[Event "Cellavision Cup 2018"]
[Site "Lund"]
[Date "2018.08.05"]
[Round "7"]
[White "Kristensen, Kaare Hove"]
[Black "Himanshu, Sharma"]
[Result "0-1"]
[ECO "B48"]
[WhiteElo "2342"]
[BlackElo "2436"]
[Annotator "NA"]
[PlyCount "51"]
[EventDate "2018.08.03"]
[EventType "swiss"]
[EventCountry "SWE"]
[SourceTitle "playchess.com"]
[Source "ChessBase"]
[SourceQuality "1"]
[TimeControl "5400+30"]

1. e4 {[%emt 0:00:00]} c5 {[%emt 0:00:00]} 2. Nf3 {[%emt 0:00:00]} Nc6 {[%emt 0:00:00]} 3. d4 {[%emt 0:00:12]} cxd4 {[%emt 0:00:00]} 4. Nxd4 {[%emt 0:00:08]} e6 {[%emt 0:00:00]} 5. Nc3 {[%emt 0:00:10]} Qc7 {[%emt 0:00:00]} 6. Be3 {[%emt 0:00:19]} a6 {[%emt 0:00:00]} 7. f4 {[%emt 0:00:38]} b5 {[%emt 0:02:10]} 8. Bd3 {[%emt 0:00:14]} Bb7 {[%emt 0:00:55]} 9. Qf3 {[%emt 0:00:15]} Nf6 {[%emt 0:01:39]} 10. O-O-O {[%emt 0:00:33]} Bc5 {[%emt 0:32:00]} 11. Nxc6 {[%emt 0:16:58]} Qxc6 {[%emt 0:00:13]} 12. Bxc5 {[%emt 0:08:20]} Qxc5 {[%emt 0:00:06]} 13. g4 {[%emt 0:00:42]} b4 {[%emt 0:02:34]} 14. Ne2 {[%emt 0:05:26]} d5 {[%emt 0:01:25]} 15. e5 {[%emt 0:01:54]} Ne4 {[%emt 0:00:06]} 16. Rhf1 {[%emt 0:10:09]} O-O {[%emt 0:02:45]} 17. Ng3 $14 {[%emt 0:09:35]} Rac8 {[%emt 0:07:00]} 18. Qe2 {[%emt 0:01:47]} Qa5 {[%emt 0:04:53]} 19. Kb1 {[%emt 0:03:12]} Nc3+ {[%emt 0:11:10]} 20. bxc3 {[%emt 0:00:44]} bxc3 {[%emt 0:00:04]} 21. Ka1 {[%emt 0:01:00]} Rc5 {[%emt 0:01:58]} 22. Rb1 {[%emt 0:01:24]} Qa4 {[%emt 0:00:20]} 23. Rxb7 {[%emt 0:08:14]} Ra5 {[%emt 0:00:16]} 24. Rb2 {[%emt 0:01:36]} cxb2+ {[%emt 0:00:08]} 25. Kxb2 {[%emt 0:00:16]} Qa3+ {[%emt 0:00:01]} 26. Ka1 0-1

[Event "Cellavision Cup 2018"]
[Site "Lund"]
[Date "2018.08.05"]
[Round "7"]
[White "Jogstad, Martin"]
[Black "Johansson, Linus"]
[Result "0-1"]
[ECO "A62"]
[WhiteElo "2312"]
[BlackElo "2457"]
[Annotator "ChessBase"]
[PlyCount "116"]
[EventDate "2018.08.03"]
[EventType "swiss"]
[EventCountry "SWE"]
[SourceTitle "playchess.com"]
[Source "ChessBase"]
[SourceQuality "1"]
[TimeControl "5400+30"]

1. d4 {[%emt 0:00:00]} Nf6 {[%emt 0:02:05]} 2. c4 {[%emt 0:00:00]} e6 {[%emt 0:00:06]} 3. g3 {[%emt 0:00:04]} c5 {[%emt 0:00:02]} 4. d5 {[%emt 0:00:49]} exd5 {[%emt 0:00:03]} 5. cxd5 {[%emt 0:00:11]} d6 {[%emt 0:00:03]} 6. Nc3 {[%emt 0:00:20]} g6 {[%emt 0:00:03]} 7. Bg2 {[%emt 0:00:27]} Bg7 {[%emt 0:00:04]} 8. Nf3 {[%emt 0:00:16]} O-O {[%emt 0:00:03]} 9. O-O {[%emt 0:00:30]} Re8 {[%emt 0:00:02]} 10. Bf4 {[%emt 0:00:26]} Na6 {[%emt 0:00:47]} 11. Nd2 {[%emt 0:06:12]} Nh5 {[%emt 0:01:02]} 12. Be3 {[%emt 0:02:43]} Rxe3 {[%emt 0:07:40]} 13. fxe3 {[%emt 0:00:07]} Qe7 {[%emt 0:00:04]} 14. Nc4 {[%emt 0:05:44]} Bxc3 {[%emt 0:09:37]} 15. bxc3 {[%emt 0:00:08]} b5 {[%emt 0:00:04]} 16. Na3 {[%emt 0:16:00]} Bd7 {[%emt 0:03:06]} 17. Nc2 {[%emt 0:24:08]} Rb8 {[%emt 0:18:09]} 18. Qd3 {[%emt 0:04:09]} Nc7 {[%emt 0:01:18]} 19. a4 {[%emt 0:01:02]} bxa4 {[%emt 0:00:20]} 20. Rfb1 {[%emt 0:03:30]} Rb6 {[%emt 0:00:22]} 21. Na3 {[%emt 0:09:44]} Nf6 {[%emt 0:04:10]} 22. Nc4 {[%emt 0:01:42]} Rxb1+ {[%emt 0:00:47]} 23. Qxb1 {[%emt 0:08:16]} Bb5 {[%emt 0:00:40]} 24. Nb2 {[%emt 0:00:24]} Qxe3+ {[%emt 0:06:47]} 25. Kh1 {[%emt 0:00:01]} Qxc3 {[%emt 0:03:33]} 26. Nxa4 {[%emt 0:02:24]} Qe3 {[%emt 0:00:13]} 27. Nb2 {[%emt 0:06:52]} a6 {[%emt 0:00:20]} 28. Nd1 {[%emt 0:02:12]} Qd2 {[%emt 0:00:25]} 29. Nf2 {[%emt 0:01:05]} Qxe2 {[%emt 0:01:06]} 30. Qe1 {[%emt 0:01:09]} Kf8 {[%emt 0:04:05]} 31. Qa5 {[%emt 0:02:19]} Ncxd5 {[%emt 0:04:53]} 32. Qd8+ {[%emt 0:02:34]} Kg7 {[%emt 0:00:07]} 33. Nh3 {[%emt 0:00:28]} Qe5 {[%emt 0:02:11]} 34. Rd1 {[%emt 0:00:15]} c4 {[%emt 0:02:08]} 35. Nf4 {[%emt 0:00:27]} Nxf4 {[%emt 0:00:06]} 36. gxf4 {[%emt 0:00:02]} Qxf4 {[%emt 0:00:07]} 37. Qxd6 {[%emt 0:00:33]} Qxd6 {[%emt 0:00:59]} 38. Rxd6 {[%emt 0:00:02]} c3 {[%emt 0:00:29]} 39. Rd1 {[%emt 0:01:12]} c2 {[%emt 0:00:29]} 40. Rc1 {[%emt 0:00:01]} Bd3 {[%emt 0:00:06]} 41. Bf1 {[%emt 0:01:05]} Bxf1 {[%emt 0:02:32]} 42. Rxf1 {[%emt 0:00:01]} Nd5 {[%emt 0:00:09]} 43. Rc1 {[%emt 0:00:58]} Nb4 {[%emt 0:00:06]} 44. Kg1 {[%emt 0:00:06]} Kf6 {[%emt 0:00:09]} 45. Kf1 {[%emt 0:00:09]} Ke5 {[%emt 0:00:13]} 46. Ke2 {[%emt 0:00:11]} Kd4 {[%emt 0:00:04]} 47. Kd2 {[%emt 0:00:11]} Kc4 {[%emt 0:00:09]} 48. Rf1 {[%emt 0:01:04]} f5 {[%emt 0:00:54]} 49. Rf3 {[%emt 0:00:05]} a5 {[%emt 0:02:44]} 50. Rc3+ {[%emt 0:01:00]} Kb5 {[%emt 0:01:33]} 51. Rc7 {[%emt 0:00:41]} Ka4 {[%emt 0:00:13]} 52. Rc3 {[%emt 0:00:35]} f4 {[%emt 0:00:57]} 53. Rf3 {[%emt 0:00:22]} g5 {[%emt 0:00:19]} 54. Kc1 {[%emt 0:00:25]} Kb5 {[%emt 0:00:50]} 55. Rh3 {[%emt 0:01:13]} Kc4 {[%emt 0:01:32]} 56. Kb2 {[%emt 0:00:22]} f3 {[%emt 0:01:43]} 57. Rxh7 {[%emt 0:00:26]} Kd3 {[%emt 0:01:18]} 58. h4 {[%emt 0:01:06]} Kd2 {[%emt 0:00:29]} 0-1

[Event "Cellavision Cup 2018"]
[Site "Lund"]
[Date "2018.08.05"]
[Round "7"]
[White "Malmstig, Erik"]
[Black "Jepson, Christian"]
[Result "0-1"]
[ECO "B07"]
[WhiteElo "2308"]
[BlackElo "2415"]
[Annotator "NA"]
[PlyCount "97"]
[EventDate "2018.08.03"]
[EventType "swiss"]
[EventCountry "SWE"]
[SourceTitle "playchess.com"]
[Source "ChessBase"]
[SourceQuality "1"]
[TimeControl "5400+30"]

1. e4 {[%emt 0:00:00]} d6 {[%emt 0:02:33]} 2. d4 {[%emt 0:00:00]} Nf6 {[%emt 0:00:17]} 3. Nc3 {[%emt 0:00:03]} g6 {[%emt 0:00:24]} 4. Be3 {[%emt 0:00:18]} c6 {[%emt 0:00:07]} 5. Qd2 {[%emt 0:00:25]} Nbd7 {[%emt 0:01:16]} 6. h3 {[%emt 0:00:55]} b5 {[%emt 0:00:59]} 7. Bd3 {[%emt 0:00:48]} e5 {[%emt 0:06:52]} 8. f4 {[%emt 0:20:02]} exd4 {[%emt 0:09:13]} 9. Bxd4 {[%emt 0:00:14]} b4 {[%emt 0:00:11]} 10. Nce2 {[%emt 0:09:34]} c5 {[%emt 0:00:16]} 11. Bf2 {[%emt 0:04:26]} Bb7 {[%emt 0:00:41]} 12. Bh4 {[%emt 0:03:12]} Be7 {[%emt 0:07:17]} 13. O-O-O {[%emt 0:10:00]} Nxe4 {[%emt 0:07:10]} 14. Bxe4 {[%emt 0:03:51]} Bxe4 {[%emt 0:01:39]} 15. Ng3 {[%emt 0:07:28]} d5 {[%emt 0:03:28]} 16. Nxe4 {[%emt 0:04:49]} dxe4 {[%emt 0:01:20]} 17. Bg5 {[%emt 0:08:51]} Bxg5 {[%emt 0:13:01]} 18. fxg5 {[%emt 0:00:20]} Qe7 {[%emt 0:00:07]} 19. Nf3 {[%emt 0:02:20]} O-O-O {[%emt 0:06:57]} 20. Qe3 {[%emt 0:09:20]} Nb6 {[%emt 0:24:56]} 21. Nd2 {[%emt 0:01:58]} Rhe8 {[%emt 0:00:13]} 22. Nb3 {[%emt 0:01:03]} Qe5 {[%emt 0:03:55]} 23. Rxd8+ {[%emt 0:04:33]} Kxd8 {[%emt 0:00:06]} 24. Nxc5 {[%emt 0:02:14]} Kc8 {[%emt 0:04:22]} 25. h4 {[%emt 0:03:15]} Qxb2+ {[%emt 0:03:11]} 26. Kxb2 {[%emt 0:00:07]} Nc4+ {[%emt 0:00:02]} 27. Kb3 {[%emt 0:00:10]} Nxe3 {[%emt 0:00:02]} 28. Re1 {[%emt 0:00:42]} Nxg2 {[%emt 0:00:29]} 29. Rxe4 {[%emt 0:00:08]} Rxe4 {[%emt 0:00:03]} 30. Nxe4 {[%emt 0:00:05]} Nxh4 {[%emt 0:01:04]} 31. Nd6+ {[%emt 0:01:19]} Kd7 {[%emt 0:00:19]} 32. Nxf7 {[%emt 0:00:13]} Nf3 {[%emt 0:00:17]} 33. Kxb4 {[%emt 0:00:48]} Ke7 {[%emt 0:00:55]} 34. Nh6 {[%emt 0:00:08]} Nxg5 {[%emt 0:00:02]} 35. Kc5 {[%emt 0:01:34]} Nf7 {[%emt 0:01:30]} 36. Ng4 {[%emt 0:00:50]} Ke6 {[%emt 0:00:55]} 37. Kd4 {[%emt 0:00:38]} h5 {[%emt 0:00:12]} 38. Nf2 {[%emt 0:00:12]} g5 {[%emt 0:00:34]} 39. c4 {[%emt 0:00:38]} Kf5 {[%emt 0:00:50]} 40. c5 {[%emt 0:00:19]} Nd8 {[%emt 0:00:48]} 41. Kd5 {[%emt 0:00:56]} g4 {[%emt 0:00:13]} 42. a4 {[%emt 0:00:36]} g3 {[%emt 0:00:19]} 43. Nd1 {[%emt 0:00:30]} h4 {[%emt 0:00:39]} 44. Ne3+ {[%emt 0:00:17]} Kf4 {[%emt 0:00:21]} 45. Ng2+ {[%emt 0:00:06]} Kg5 {[%emt 0:00:33]} 46. Ne1 {[%emt 0:01:57]} h3 {[%emt 0:00:08]} 47. Ke4 {[%emt 0:00:40]} h2 {[%emt 0:00:12]} 48. Nf3+ {[%emt 0:00:09]} Kf6 {[%emt 0:00:22]} 49. Kd4 {Ke5+} 0-1

[Event "Cellavision Cup 2018"]
[Site "Lund"]
[Date "2018.08.05"]
[Round "7"]
[White "Vernersson, Per"]
[Black "Sjodahl, Pontus"]
[Result "1/2-1/2"]
[ECO "E49"]
[WhiteElo "2290"]
[BlackElo "2404"]
[Annotator "NA"]
[PlyCount "108"]
[EventDate "2018.08.03"]
[EventType "swiss"]
[EventCountry "SWE"]
[SourceTitle "playchess.com"]
[Source "ChessBase"]
[SourceQuality "1"]
[TimeControl "5400+30"]

1. d4 {[%emt 0:00:00]} Nf6 {[%emt 0:00:00]} 2. c4 {[%emt 0:00:00]} e6 {[%emt 0:00:00]} 3. Nc3 {[%emt 0:00:28]} Bb4 {[%emt 0:00:07]} 4. e3 {[%emt 0:00:35]} O-O {[%emt 0:00:25]} 5. Bd3 {[%emt 0:00:23]} d5 {[%emt 0:02:41]} 6. a3 {[%emt 0:01:09]} Bxc3+ {[%emt 0:06:15]} 7. bxc3 {[%emt 0:00:09]} c6 {[%emt 0:03:26]} 8. Ne2 {[%emt 0:05:32]} b6 {[%emt 0:00:56]} 9. O-O {[%emt 0:02:35]} Ba6 {[%emt 0:01:17]} 10. cxd5 {[%emt 0:01:44]} Bxd3 {[%emt 0:03:21]} 11. Qxd3 {[%emt 0:00:15]} cxd5 {[%emt 0:00:07]} 12. c4 {[%emt 0:00:39]} Nc6 {[%emt 0:05:45]} 13. f3 {[%emt 0:06:11]} dxc4 {[%emt 0:14:49]} 14. Qxc4 {[%emt 0:00:24]} Na5 {[%emt 0:03:24]} 15. Qd3 {[%emt 0:03:05]} Rc8 {[%emt 0:01:17]} 16. Bd2 {[%emt 0:07:01]} Qd5 {[%emt 0:09:22]} 17. Bxa5 {[%emt 0:05:14]} Qxa5 {[%emt 0:00:41]} 18. Rfc1 {[%emt 0:00:26]} Rfd8 {[%emt 0:03:00]} 19. e4 {[%emt 0:01:31]} Qa4 {[%emt 0:06:08]} 20. Kf2 {[%emt 0:01:57]} h6 {[%emt 0:05:17]} 21. Rc3 {[%emt 0:01:16]} Rxc3 {[%emt 0:00:51]} 22. Qxc3 {[%emt 0:00:07]} Qd7 {[%emt 0:03:20]} 23. Rc1 {[%emt 0:00:14]} Kf8 {[%emt 0:02:01]} 24. Qc7 {[%emt 0:02:05]} Ne8 {[%emt 0:00:29]} 25. Qxd7 {[%emt 0:01:16]} Rxd7 {[%emt 0:00:06]} 26. Ke3 {[%emt 0:00:27]} Rc7 {[%emt 0:01:42]} 27. Rxc7 {[%emt 0:03:38]} Nxc7 {[%emt 0:00:21]} 28. Nc3 {[%emt 0:00:41]} Ke7 {[%emt 0:00:07]} 29. h4 {[%emt 0:00:47]} Kd6 {[%emt 0:05:26]} 30. g4 {[%emt 0:02:54]} Kc6 {[%emt 0:01:45]} 31. Kd3 {[%emt 0:02:23]} b5 {[%emt 0:01:28]} 32. Ne2 {[%emt 0:04:20]} a5 {[%emt 0:01:06]} 33. Kc3 {[%emt 0:01:21]} Ne8 {[%emt 0:01:09]} 34. h5 {[%emt 0:03:27]} Nd6 {[%emt 0:03:34]} 35. Nf4 {[%emt 0:02:42]} Nc4 {[%emt 0:03:55]} 36. a4 {[%emt 0:02:45]} Nb6 {[%emt 0:01:35]} 37. axb5+ {[%emt 0:00:40]} Kxb5 {[%emt 0:00:05]} 38. Nd3 {[%emt 0:01:07]} Nc8 {[%emt 0:02:18]} 39. Ne5 {[%emt 0:10:56]} Nd6 {[%emt 0:00:18]} 40. Kb3 {[%emt 0:00:19]} f5 {[%emt 0:02:27]} 41. exf5 {[%emt 0:01:36]} exf5 {[%emt 0:00:07]} 42. Nd3 {[%emt 0:01:43]} a4+ {[%emt 0:03:27]} 43. Kc3 {[%emt 0:00:43]} fxg4 {[%emt 0:00:34]} 44. fxg4 {[%emt 0:00:07]} Ne4+ {[%emt 0:00:15]} 45. Kb2 {[%emt 0:01:41]} Kc4 {[%emt 0:02:30]} 46. Nf4 {[%emt 0:00:27]} Kxd4 {[%emt 0:01:20]} 47. Ne6+ {[%emt 0:00:26]} Kc4 {[%emt 0:00:14]} 48. Ka3 {[%emt 0:00:28]} Kb5 {[%emt 0:00:31]} 49. Nxg7 {[%emt 0:00:30]} Nf6 {[%emt 0:00:10]} 50. Nf5 {[%emt 0:01:01]} Nxg4 {[%emt 0:00:05]} 51. Nd4+ {[%emt 0:00:08]} Ka5 {[%emt 0:00:43]} 52. Nf5 {[%emt 0:00:04]} Kb5 {[%emt 0:00:59]} 53. Nd4+ {[%emt 0:00:07]} Ka5 {[%emt 0:00:43]} 54. Nf5 {[%emt 0:00:07]} Kb5 1/2-1/2